bitfinex-derivatives/quotes_SOLF0:USTF0_20241226
["timestamp","ask_amount","ask_price","bid_price","bid_amount"]
[1735220599280,3.3,188.59,188.54,2.6546]
[1735220600079,3.3,188.59,188.53,7.78134396]
[1735220600381,3.3,188.59,188.55,2.6545]
[1735220601178,3.3,188.59,188.56,2.6544]
[1735220601483,3.3,188.59,188.53,7.78134396]
[1735220601882,3.3,188.59,188.55,2.6544]
[1735220603473,3.3,188.59,188.56,2.6544]
[1735220604585,10.43504396,188.61,188.49,1.6478]
[1735220604586,2.6535,188.63,188.58,2.6541]
[1735220604779,3.1846,188.64,188.59,7.78134396]
[1735220604780,3.3,188.64,188.59,7.78134396]
[1735220606183,3.3,188.64,188.62,2.6535]
[1735220606684,3.3,188.64,188.6,2.6537]
[1735220606981,11.08134396,188.64,188.57,7.78134396]
[1735220607584,11.08134396,188.64,188.59,2.6539]
[1735220607783,11.08134396,188.64,188.57,7.78134396]
[1735220608179,3.3,188.63,188.59,7.78134396]
[1735220609382,3.3,188.64,188.61,2.6536]
[1735220610885,3.3,188.64,188.62,2.6535]
[1735220611585,3.3,188.64,188.59,7.78134396]
[1735220611782,11.00324396,188.7,188.63,7.78134396]
[1735220611986,3.26,188.69,188.65,7.78134396]
[1735220612686,3.26,188.69,188.67,2.6527]
[1735220613080,3.26,188.69,188.65,7.78134396]
[1735220613283,7.78134396,188.68,188.57,1.5333]
[1735220613485,7.78134396,188.68,188.61,7.78134396]
[1735220614088,10.43404396,188.68,188.63,2.6533]
[1735220614391,7.78134396,188.68,188.61,7.78134396]
[1735220614682,7.78134396,188.68,188.64,2.6532]
[1735220614888,3.26,188.69,188.63,7.78134396]
[1735220615881,3.26,188.69,188.65,7.78134396]
[1735220616487,3.26,188.7,188.68,2.6526]
[1735220616884,11.04134396,188.7,188.66,2.6529]
[1735220617080,11.04134396,188.7,188.63,7.78134396]
[1735220617386,2.6521,188.73,188.68,2.6526]
[1735220617703,3.26,188.72,188.68,7.78134396]
[1735220617990,3.26,188.72,188.7,2.6524]
[1735220619489,3.2614,188.77,188.68,7.78134396]
[1735220619688,3.26,188.73,188.68,7.78134396]
[1735220619886,11.04134396,188.76,188.7,7.78134396]
[1735220620985,11.04134396,188.76,188.72,2.6521]
[1735220621186,7.78134396,188.74,188.67,1.5416]
[1735220622288,7.78134396,188.74,188.7,2.6524]
[1735220622490,7.78134396,188.74,188.68,7.78134396]
[1735220622892,7.78134396,188.74,188.71,2.6522]
[1735220623090,3.26,188.76,188.7,7.78134396]
[1735220623290,3.26,188.76,188.72,7.78134396]
[1735220623484,3.26,188.76,188.7,7.78134396]
[1735220623687,11.04134396,188.76,188.68,10.87044396]
[1735220624090,13.69294396,188.76,188.71,2.6523]
[1735220624284,5.9116,188.76,188.71,2.6523]
[1735220625291,3.26,188.76,188.72,2.6522]
[1735220625593,3.26,188.76,188.68,3.0891]
[1735220625594,3.26,188.77,188.69,12.1458537]
[1735220625790,15.4065537,188.81,188.77,2.6514]
[1735220625989,3.26,188.78,188.77,2.6514]
[1735220626191,3.26,188.79,188.77,2.6514]
[1735220628392,21.99954423,188.91,188.74,2.6518]
[1735220628593,12.1458537,188.82,188.72,12.1458537]
[1735220628789,12.1458537,188.85,188.72,12.1458537]
[1735220628996,12.1458537,188.88,188.75,12.1458537]
[1735220629294,3.26,188.87,188.83,2.6506]
[1735220631392,5.9101,188.87,188.81,2.6508]
[1735220631592,3.26,188.87,188.76,4.8218]
[1735220632490,2.6504,188.85,188.79,2.6511]
[1735220632796,2.6504,188.85,188.76,4.8218]
[1735220633991,2.6504,188.85,188.78,2.6512]
[1735220634196,2.6505,188.84,188.76,4.8218]
[1735220634696,3.26,188.87,188.72,12.1458537]
[1735220634697,12.1458537,188.85,188.72,12.1458537]
[1735220635290,2.651,188.81,188.75,2.6516]
[1735220635497,3.26,188.8,188.75,2.6516]
[1735220635694,3.26,188.8,188.72,12.1458537]
[1735220637198,3.26,188.8,188.75,2.6516]
[1735220638198,3.26,188.8,188.76,2.6516]
[1735220640199,3.26,188.8,188.72,12.1458537]
[1735220640399,12.1458537,188.88,188.75,12.1458537]
[1735220640602,3.26,188.87,188.78,12.1458537]
[1735220640799,3.26,188.87,188.83,2.6506]
[1735220641198,3.26,188.87,188.84,2.6505]
[1735220641899,3.26,188.87,188.78,12.1458537]
[1735220642796,3.26,188.87,188.77,1.6866]
[1735220643003,2.6504,188.85,188.79,2.6511]
[1735220643198,2.6504,188.85,188.77,1.6866]
[1735220643797,2.6504,188.85,188.8,2.651]
[1735220645003,2.6502,188.86,188.81,2.6509]
[1735220645198,12.1458537,188.91,188.78,12.1458537]
[1735220645398,3.22,188.9,188.78,12.1458537]
[1735220646303,2.6498,188.89,188.81,2.6508]
[1735220646497,2.6498,188.89,188.78,12.1458537]
[1735220647499,2.6498,188.89,188.83,2.6505]
[1735220648900,3.22,188.89,188.87,2.6499]
[1735220649899,3.22,188.89,188.81,12.1458537]
[1735220650100,4.2684,188.92,188.81,12.1458537]
[1735220650101,3.22,188.9,188.81,12.1458537]
[1735220650302,1.619,188.92,188.82,1.5802]
[1735220650507,3.22,188.91,188.88,2.6498]
[1735220652501,5.8695,188.91,188.87,2.65]
[1735220652706,3.22,188.9,188.83,1.5778]
[1735220653101,15.3658537,188.9,188.77,1.6866]
[1735220653307,12.1458537,188.84,188.75,3.1795]
[1735220653501,3.22,188.83,188.75,3.1795]
[1735220654002,3.22,188.83,188.71,1.6159]
[1735220654202,6.3944,188.83,188.71,1.6159]
[1735220654399,2.6512,188.8,188.71,1.6159]
[1735220655206,2.6512,188.8,188.74,2.6518]
[1735220655904,6.3944,188.83,188.76,2.6515]
[1735220657411,2.6508,188.82,188.76,2.6515]
[1735220657811,2.6508,188.82,188.77,2.6514]
[1735220658011,6.3944,188.83,188.71,1.6159]
[1735220658213,2.6512,188.79,188.71,1.6159]
[1735220658409,3.22,188.78,188.74,2.6517]
[1735220659911,3.22,188.78,188.75,2.6517]
[1735220660106,3.22,188.78,188.71,1.6159]
[1735220660311,3.22,188.78,188.73,12.1458537]
[1735220660509,3.22,188.8,188.76,2.6516]
[1735220661616,3.22,188.8,188.77,2.6513]
[1735220663053,3.22,188.8,188.73,12.1458537]
[1735220663240,3.22,188.8,188.78,2.6513]
[1735220665116,3.22,188.8,188.73,12.1458537]
[1735220665313,3.22,188.8,188.71,1.6159]
[1735220666018,5.8711,188.8,188.71,1.6159]
[1735220666415,3.22,188.8,188.71,1.6159]
[1735220666922,3.22,188.8,188.75,2.6517]
[1735220667819,3.22,188.8,188.77,2.6514]
[1735220668019,12.1458537,188.87,188.73,12.1458537]
[1735220668219,2.6505,188.84,188.8,2.651]
[1735220668420,3.22,188.83,188.8,2.651]
[1735220668721,5.8707,188.83,188.78,2.6513]
[1735220669516,5.8707,188.83,188.79,2.6512]
[1735220671119,2.6509,188.81,188.77,2.6515]
[1735220671918,3.22,188.83,188.74,2.6518]
[1735220672119,1.531,188.82,188.71,1.6159]
[1735220672315,1.531,188.82,188.69,13.6914537]
[1735220672522,1.6049,188.81,188.69,13.6914537]
[1735220672925,1.6049,188.81,188.72,12.1458537]
[1735220673226,2.6509,188.81,188.77,2.6513]
[1735220673926,2.651,188.8,188.76,2.6516]
[1735220676216,2.651,188.8,188.76,10.42098088]
[1735220676423,2.651,188.8,188.77,2.6515]
[1735220676619,4.1819,188.82,188.76,7.76938088]
[1735220676925,2.6509,188.82,188.76,7.76938088]
[1735220677434,2.6509,188.82,188.78,10.42058088]
[1735220677727,2.6509,188.82,188.78,2.6512]
[1735220679531,3.22,188.83,188.74,12.13629335]
[1735220679734,2.6511,188.8,188.74,12.13629335]
[1735220680062,3.22,188.81,188.74,12.13629335]
[1735220680230,3.22,188.81,188.78,2.6512]
[1735220682231,3.22,188.81,188.74,12.13629335]
[1735220683431,3.22,188.81,188.77,2.6513]
[1735220685027,5.871,188.81,188.76,2.6516]
[1735220685234,3.22,188.81,188.76,2.6516]
[1735220686437,2.6511,188.8,188.76,2.6516]
[1735220686838,3.22,188.81,188.76,2.6516]
[1735220687635,5.8709,188.81,188.76,2.6516]
[1735220689037,5.8709,188.81,188.74,12.13629335]
[1735220689237,3.22,188.81,188.74,12.13629335]
[1735220689639,21.99954423,188.85,188.8,2.651]
[1735220689934,3.22,188.84,188.77,12.13629335]
[1735220690335,3.22,188.84,188.82,2.6507]
[1735220690835,3.22,188.84,188.77,12.13629335]
[1735220692436,3.22,188.84,188.82,2.6507]
[1735220693537,3.22,188.84,188.77,12.13629335]
[1735220693733,2.6507,188.83,188.76,1.6343]
[1735220694034,3.22,188.82,188.78,2.6512]
[1735220694628,3.22,188.82,188.76,4.2859]
[1735220696236,2.6509,188.81,188.76,2.6516]
[1735220697736,2.6511,188.8,188.76,2.6516]
[1735220699535,5.8708,188.82,188.78,2.6513]
[1735220700940,5.8708,188.82,188.7,4.8194]
[1735220700941,10.98683564,188.82,188.75,7.76683564]
[1735220701140,2.651,188.81,188.77,2.6514]
[1735220701331,10.98683564,188.82,188.77,2.6514]
[1735220701530,7.76683564,188.8,188.75,2.6517]
[1735220701939,7.76683564,188.8,188.73,7.76683564]
[1735220702436,2.6514,188.78,188.74,2.6518]
[1735220702638,3.22,188.77,188.74,2.6518]
[1735220704446,7.76683564,188.76,188.62,3.22]
[1735220704743,7.76683564,188.74,188.68,7.76683564]
[1735220705437,7.76683564,188.72,188.62,4.8362]
[1735220705639,7.76683564,188.7,188.64,7.76683564]
[1735220705840,3.22,188.69,188.64,7.76683564]
[1735220706439,3.22,188.69,188.64,10.42003564]
[1735220706648,3.22,188.69,188.64,7.76683564]
[1735220707445,3.22,188.69,188.65,2.653]
[1735220708444,2.6528,188.68,188.62,7.4897]
[1735220708648,3.22,188.69,188.62,5.8641]
[1735220708852,3.22,188.69,188.62,2.6535]
[1735220709344,2.6527,188.68,188.63,2.6534]
[1735220710354,3.22,188.69,188.58,13.79196156]
[1735220710651,3.22,188.69,188.56,15.28116156]
[1735220710841,3.22,188.69,188.56,3.1284]
[1735220710842,12.15276156,188.67,188.56,3.1284]
[1735220711046,2.6534,188.64,188.58,2.654]
[1735220711348,3.22,188.63,188.56,1.526]
[1735220712247,3.22,188.63,188.52,13.77436156]
[1735220712449,2.6538,188.61,188.52,15.29546156]
[1735220712751,12.15276156,188.61,188.52,1.5211]
[1735220712944,12.15276156,188.61,188.5,13.68706156]
[1735220714646,2.654,188.59,188.5,13.68706156]
[1735220714944,3.22,188.58,188.5,13.68706156]
[1735220715552,3.22,188.58,188.51,2.655]
[1735220716052,15.37276156,188.58,188.5,2.6553]
[1735220716452,15.37276156,188.58,188.47,13.77436156]
[1735220716653,2.6548,188.53,188.48,2.6554]
[1735220716852,3.22,188.52,188.48,2.6554]
[1735220717348,3.22,188.52,188.46,1.5211]
[1735220717544,3.22,188.52,188.42,1.6102]
[1735220717751,3.22,188.52,188.41,48.88399428]
[1735220717951,2.6552,188.51,188.45,2.6558]
[1735220718253,3.22,188.52,188.47,12.15276156]
[1735220719153,3.22,188.52,188.49,2.6553]
[1735220719753,3.22,188.52,188.44,12.15276156]
[1735220721254,3.22,188.52,188.45,1.5644]
[1735220721454,3.22,188.52,188.48,2.6555]
[1735220721851,3.22,188.52,188.38,3.2144]
[1735220722156,2.6553,188.5,188.44,2.6561]
[1735220722356,15.37276156,188.52,188.27,29.35282029]
[1735220722357,12.15276156,188.49,188.27,29.35282029]
[1735220722656,12.15276156,188.46,188.33,12.15276156]
[1735220722954,12.15276156,188.46,188.34,2.6574]
[1735220722955,2.6565,188.42,188.34,2.6574]
[1735220723150,4.8571,188.45,188.34,2.6574]
[1735220723748,2.6564,188.43,188.37,2.657]
[1735220723954,2.6564,188.43,188.33,12.15276156]
[1735220724250,3.22,188.42,188.35,2.6573]
[1735220724447,5.8764,188.42,188.33,12.15276156]
[1735220724850,3.22,188.42,188.37,2.6571]
[1735220725050,3.22,188.42,188.33,12.15276156]
[1735220725453,3.22,188.42,188.37,2.657]
[1735220725648,3.22,188.42,188.33,12.15276156]
[1735220726053,2.6567,188.4,188.33,12.15276156]
[1735220726250,3.22,188.42,188.33,12.15276156]
[1735220727260,5.8765,188.42,188.36,2.6572]
[1735220727457,3.22,188.42,188.31,3.2669]
[1735220727857,2.6571,188.38,188.32,2.6577]
[1735220728159,3.22,188.37,188.3,12.15276156]
[1735220728458,3.22,188.37,188.3,14.81076156]
[1735220728459,2.6571,188.37,188.3,14.81076156]
[1735220728661,3.22,188.36,188.3,14.81076156]
[1735220728857,3.22,188.36,188.3,2.658]
[1735220729058,5.8774,188.36,188.3,2.658]
[1735220729460,2.6576,188.34,188.29,2.6582]
[1735220729861,3.22,188.36,188.29,2.6582]
[1735220730954,2.6574,188.35,188.29,2.6582]
[1735220731158,12.15276156,188.41,188.28,1.5644]
[1735220731461,2.6571,188.38,188.32,2.6578]
[1735220732361,2.6571,188.37,188.32,2.6578]
[1735220734160,2.6571,188.37,188.28,1.5644]
[1735220734161,3.22,188.36,188.3,12.15276156]
[1735220735066,3.22,188.36,188.33,2.6575]
[1735220736560,3.22,188.36,188.3,12.15276156]
[1735220736764,3.22,188.37,188.3,12.15276156]
[1735220737660,2.6564,188.42,188.3,12.15276156]
[1735220737864,13.81676156,188.44,188.33,12.15276156]
[1735220737865,3.22,188.41,188.33,12.15276156]
[1735220738858,3.22,188.41,188.38,2.6569]
[1735220739064,3.22,188.41,188.33,12.15276156]
[1735220739569,5.8765,188.41,188.36,2.6572]
[1735220740165,3.22,188.41,188.37,2.6571]
[1735220740564,3.22,188.41,188.34,3.1594]
[1735220740763,12.15276156,188.44,188.34,3.1594]
[1735220741067,3.22,188.43,188.34,3.1594]
[1735220742371,3.22,188.43,188.39,2.6568]
[1735220742583,3.22,188.43,188.34,3.1594]
[1735220743166,3.22,188.43,188.41,2.6565]
[1735220743370,55.2,188.46,188.36,12.15276156]
[1735220743575,3.22,188.45,188.37,1.6694]
[1735220743768,3.22,188.46,188.45,2.6559]
[1735220746373,3.22,188.46,188.44,2.6561]
[1735220747368,14.80786156,188.52,188.47,2.6556]
[1735220747574,3.22,188.51,188.47,2.6556]
[1735220749881,3.22,188.51,188.39,12.15276156]
[1735220750071,3.22,188.51,188.37,13.82216156]
[1735220750072,3.22,188.51,188.42,12.15276156]
[1735220750274,12.15276156,188.55,188.5,2.6551]
[1735220750478,55.24,188.58,188.45,12.15276156]
[1735220750479,3.22,188.54,188.45,12.15276156]
[1735220750778,3.22,188.54,188.46,1.5882]
[1735220750979,3.22,188.54,188.52,2.6549]
[1735220751479,3.22,188.54,188.46,1.5882]
[1735220751679,3.22,188.54,188.51,2.6551]
[1735220751886,3.22,188.54,188.46,1.5882]
[1735220752180,2.655,188.52,188.47,2.6556]
[1735220752980,2.6546,188.55,188.5,2.6553]
[1735220753183,3.22,188.54,188.46,1.5882]
[1735220753683,2.6553,188.5,188.46,1.5882]
[1735220753879,3.22,188.49,188.46,1.5882]
[1735220754480,3.22,188.49,188.45,2.656]
[1735220756886,3.22,188.49,188.43,3.2208]
[1735220757087,3.22,188.49,188.46,2.6558]
[1735220761887,15.37276156,188.49,188.39,1.539]
[1735220762294,2.656,188.45,188.39,4.1957]
[1735220762592,3.22,188.44,188.39,4.1957]
[1735220763091,3.22,188.44,188.4,2.6566]
[1735220763292,3.22,188.44,188.33,15.30356156]
[1735220763992,3.22,188.44,188.33,12.15276156]
[1735220764387,2.6564,188.42,188.37,2.657]
[1735220764692,3.22,188.44,188.33,12.15276156]
[1735220765294,2.6563,188.43,188.33,12.15276156]
[1735220766294,2.6564,188.42,188.33,12.15276156]
[1735220766596,12.15276156,188.43,188.32,1.6481]
[1735220766795,13.82646156,188.43,188.32,1.6481]
[1735220766989,1.655,188.42,188.32,1.6481]
[1735220767490,2.6569,188.39,188.34,2.6574]
[1735220767687,3.22,188.38,188.34,2.6574]
[1735220767994,3.22,188.38,188.35,2.6574]
[1735220768990,3.22,188.38,188.33,12.15276156]
[1735220769198,3.22,188.4,188.33,12.15276156]
[1735220769597,2.6563,188.43,188.33,12.15276156]
[1735220769792,3.22,188.42,188.33,12.15276156]
[1735220769995,3.22,188.42,188.36,12.15276156]
[1735220770500,3.22,188.42,188.41,2.6565]
[1735220771704,2.6557,188.47,188.41,2.6565]
[1735220771904,3.22,188.46,188.41,2.6565]
[1735220772095,3.22,188.46,188.36,12.15276156]
[1735220772496,3.22,188.46,188.37,3.2471]
[1735220773802,3.2036,188.48,188.37,3.2471]
[1735220774005,3.22,188.47,188.37,3.2471]
[1735220774407,3.22,188.47,188.43,2.6561]
[1735220774610,3.22,188.47,188.37,3.2471]
[1735220775110,2.6558,188.46,188.37,3.2471]
[1735220775305,3.22,188.47,188.37,3.2471]
[1735220776010,3.2036,188.48,188.37,3.2471]
[1735220776213,3.22,188.46,188.37,3.2471]
[1735220776508,3.22,188.46,188.43,2.6562]
[1735220778611,3.22,188.46,188.37,3.2471]
[1735220778812,3.22,188.46,188.44,2.6561]
[1735220779308,12.15276156,188.49,188.37,3.2471]
[1735220779501,3.22,188.48,188.46,2.6558]
[1735220780108,2.6551,188.51,188.47,2.6556]
[1735220780306,3.22,188.5,188.39,12.15276156]
[1735220780611,2.6555,188.49,188.39,12.15276156]
[1735220780812,3.22,188.5,188.39,12.15276156]
[1735220781208,2.6555,188.48,188.44,2.6561]
[1735220781413,3.22,188.5,188.39,12.15276156]
[1735220781616,3.22,188.5,188.4,1.6603]
[1735220781912,3.22,188.49,188.42,12.15276156]
[1735220782710,12.15276156,188.55,188.42,12.15276156]
[1735220783214,3.22,188.54,188.42,12.15276156]
[1735220783413,3.22,188.54,188.51,2.6551]
[1735220784009,3.22,188.54,188.49,2.6553]
[1735220784210,3.22,188.54,188.45,12.15276156]
[1735220785415,3.22,188.54,188.5,2.6552]
[1735220787116,2.6548,188.53,188.42,12.15276156]
[1735220788207,3.22,188.54,188.45,12.15276156]
[1735220788409,67.39276156,188.58,188.46,3.1494]
[1735220788617,55.24,188.58,188.48,12.15276156]
[1735220788818,21.99954423,188.59,188.51,12.15276156]
[1735220789008,3.22,188.58,188.51,12.15276156]
[1735220790515,3.22,188.58,188.55,2.6544]
[1735220790715,3.22,188.58,188.51,12.15276156]
[1735220790917,2.6545,188.56,188.5,2.6552]
[1735220791112,15.37276156,188.58,188.49,1.5507]
[1735220791416,2.6546,188.55,188.49,1.5507]
[1735220792614,2.6546,188.55,188.5,2.6552]
[1735220794218,2.6547,188.54,188.49,4.2061]
[1735220794409,3.22,188.53,188.3,202.02896152]
[1735220794614,3.22,188.52,188.42,12.15276156]
[1735220794816,2.6553,188.5,188.45,2.656]
[1735220796515,2.6554,188.49,188.44,2.6561]
[1735220796911,15.37276156,188.52,188.39,12.15276156]
[1735220797116,2.6557,188.47,188.42,2.6564]
[1735220797316,3.22,188.46,188.42,2.6564]
[1735220798724,3.22,188.46,188.38,4.8844]
[1735220800122,3.22,188.46,188.38,1.6429]
[1735220800327,3.22,188.46,188.37,2.6569]
[1735220800516,3.22,188.46,188.36,12.15276156]
[1735220800922,2.6563,188.43,188.38,2.6568]
[1735220801622,3.22,188.46,188.36,12.15276156]
[1735220802222,3.22,188.46,188.37,1.5679]
[1735220803226,1.5248,188.47,188.37,1.5679]
[1735220803527,3.22,188.46,188.37,1.5679]
[1735220804027,3.22,188.46,188.42,2.6564]
[1735220807124,3.22,188.46,188.37,3.1521]
[1735220807327,12.15276156,188.51,188.39,12.15276156]
[1735220807623,3.22,188.51,188.42,12.15276156]
[1735220807827,70.02746156,188.54,188.42,12.15276156]
[1735220808129,3.22,188.53,188.42,12.15276156]
[1735220808527,3.22,188.53,188.45,12.15276156]
[1735220808728,3.22,188.53,188.5,2.6551]
[1735220809225,13.74886156,188.57,188.46,4.7728]
[1735220809430,3.22,188.54,188.51,2.655]
[1735220809632,16.40316156,188.57,188.51,2.655]
[1735220809831,3.22,188.56,188.51,2.655]
[1735220810232,3.22,188.56,188.46,4.7728]
[1735220810428,3.22,188.56,188.52,2.6549]
[1735220810829,14.80706156,188.57,188.52,2.6549]
[1735220811029,3.22,188.56,188.52,2.6549]
[1735220811327,1.6336,188.58,188.54,2.6547]
[1735220811523,3.22,188.57,188.48,12.15276156]
[1735220811722,3.22,188.58,188.48,12.15276156]
[1735220813130,3.22,188.58,188.52,2.655]
[1735220813333,3.22,188.58,188.48,12.15276156]
[1735220815029,5.8743,188.58,188.52,2.6549]
[1735220818054,2.6543,188.57,188.52,2.6549]
[1735220820947,3.22,188.58,188.54,2.6547]
[1735220821347,3.22,188.58,188.46,4.7728]
[1735220821547,2.6544,188.56,188.51,2.655]
[1735220822249,10.44373289,188.56,188.51,2.655]
[1735220822445,7.78933289,188.56,188.52,2.655]
[1735220822645,7.78933289,188.56,188.49,7.78933289]
[1735220822847,11.00933289,188.58,188.51,7.78933289]
[1735220823341,7.78933289,188.56,188.49,7.78933289]
[1735220823546,3.22,188.58,188.46,4.7728]
[1735220823547,7.78933289,188.54,188.47,7.78933289]
[1735220823747,3.22,188.53,188.47,7.78933289]
[1735220824148,2.6551,188.51,188.38,10.5816194]
[1735220824454,7.78933289,188.5,188.44,7.78933289]
[1735220825245,10.44473289,188.5,188.45,2.6559]
[1735220825456,7.78933289,188.48,188.42,7.78933289]
[1735220825657,3.22,188.47,188.42,7.78933289]
[1735220826151,3.22,188.47,188.39,17.03381818]
[1735220827658,3.22,188.47,188.43,2.6562]
[1735220827849,3.22,188.47,188.39,17.03381818]
[1735220827850,3.22,188.47,188.39,13.79451818]
[1735220828049,2.6561,188.44,188.39,2.6567]
[1735220828249,3.22,188.47,188.39,2.6567]
[1735220828447,3.22,188.47,188.36,12.18031818]
[1735220828953,2.6559,188.46,188.36,12.18031818]
[1735220829659,2.6559,188.46,188.39,2.6567]
[1735220829851,3.22,188.47,188.36,12.18031818]
[1735220830053,3.22,188.47,188.38,2.6569]
[1735220830356,3.22,188.47,188.36,12.18031818]
[1735220831555,2.6563,188.43,188.33,12.18031818]
[1735220831754,3.22,188.42,188.33,12.18031818]
[1735220832753,2.6565,188.41,188.33,12.18031818]
[1735220832955,15.40031818,188.42,188.31,1.6327]
[1735220833556,2.657,188.38,188.33,2.6576]
[1735220833757,3.22,188.37,188.31,1.6327]
[1735220834458,3.22,188.37,188.33,2.6576]
[1735220835864,3.22,188.37,188.31,1.6327]
[1735220836056,3.22,188.37,188.32,2.6578]
[1735220838162,3.22,188.37,188.31,1.6327]
[1735220838362,3.22,188.37,188.33,2.6576]
[1735220839556,3.22,188.37,188.28,36.75681956]
[1735220839961,2.6574,188.35,188.25,1.5469]
[1735220840168,3.22,188.37,188.25,13.72721818]
[1735220840360,12.18031818,188.39,188.28,12.18031818]
[1735220840564,3.22,188.38,188.36,2.6572]
[1735220840765,3.22,188.39,188.36,2.6572]
[1735220840966,3.22,188.39,188.31,12.18031818]
[1735220841167,3.22,188.39,188.29,3.1693]
[1735220842066,2.6572,188.37,188.32,2.6578]
[1735220842366,3.22,188.36,188.29,3.1693]
[1735220842560,3.22,188.35,188.29,3.1693]
[1735220842762,3.22,188.36,188.33,2.6575]
[1735220842971,3.22,188.36,188.31,12.18031818]
[1735220843168,2.6566,188.41,188.35,2.6573]
[1735220843369,3.22,188.38,188.35,2.6573]
[1735220844069,3.22,188.38,188.33,2.6576]
[1735220844266,3.22,188.38,188.29,3.1693]
[1735220844661,2.6571,188.37,188.31,2.6578]
[1735220845266,2.6571,188.37,188.32,2.6578]
[1735220845861,5.877,188.38,188.33,2.6576]
[1735220848172,13.68097335,188.38,188.33,2.6576]
[1735220849972,13.68097335,188.38,188.34,2.6575]
[1735220850272,3.22,188.37,188.34,2.6575]
[1735220850874,3.2933,188.44,188.33,7.80397335]
[1735220851073,7.80397335,188.42,188.35,7.80397335]
[1735220851475,3.22,188.41,188.35,7.80397335]
[1735220852276,3.2933,188.44,188.37,7.80397335]
[1735220852277,3.22,188.4,188.37,7.80397335]
[1735220852975,3.22,188.41,188.37,7.80397335]
[1735220853475,3.22,188.41,188.39,2.6568]
[1735220853873,3.22,188.41,188.37,7.80397335]
[1735220854072,3.22,188.41,188.38,2.6569]
[1735220854674,3.22,188.41,188.37,7.80397335]
[1735220854872,3.22,188.42,188.37,7.80397335]
[1735220855280,3.22,188.42,188.4,2.6566]
[1735220855575,7.80397335,188.46,188.39,7.80397335]
[1735220855780,3.22,188.45,188.41,7.80397335]
[1735220856078,3.22,188.45,188.34,1.5863]
[1735220856270,3.22,188.45,188.4,7.80397335]
[1735220856470,3.22,188.45,188.41,2.6564]
[1735220856882,3.22,188.45,188.4,7.80397335]
[1735220857580,10.45947335,188.48,188.4,7.80397335]
[1735220857778,3.22,188.47,188.4,7.80397335]
[1735220858280,3.22,188.47,188.42,7.80397335]
[1735220858580,3.22,188.48,188.44,7.80397335]
[1735220858779,3.22,188.48,188.45,2.6559]
[1735220858975,7.80397335,188.46,188.4,7.80397335]
[1735220860083,11.02397335,188.48,188.42,7.80397335]
[1735220861080,11.02397335,188.48,188.44,2.656]
[1735220862788,11.02397335,188.48,188.42,7.80397335]
[1735220862982,11.02397335,188.48,188.45,2.6558]
[1735220863284,7.80397335,188.48,188.45,2.6558]
[1735220863485,3.22,188.47,188.45,2.6558]
[1735220863681,3.22,188.47,188.44,2.6561]
[1735220863881,3.22,188.47,188.42,7.80397335]
[1735220865986,3.22,188.47,188.44,2.656]
[1735220869587,1.4384,188.55,188.42,7.80397335]
[1735220869789,3.22,188.51,188.46,7.80397335]
[1735220869981,3.22,188.52,188.46,7.80397335]
[1735220870291,7.80397335,188.56,188.5,7.80397335]
[1735220870490,3.22,188.55,188.5,7.80397335]
[1735220870680,3.22,188.55,188.5,2.6551]
[1735220870885,3.22,188.55,188.49,7.80397335]
[1735220874586,3.22,188.55,188.51,2.655]
[1735220877087,3.22,188.55,188.49,7.80397335]